[Event "Betsys MČR v online bleskovém šachu 2021"]
[Site "Chess.com"]
[Date "2021.04.17"]
[Round "12"]
[White "Hanicka1517"]
[Black "Toman_26"]
[Result "1-0"]
[WhiteElo "1599"]
[BlackElo "1078"]
[TimeControl "180+1"]
[EndTime "11:00:59 PDT"]
[Termination "Uživatel Hanicka1517 zvítězil po vzdání soupeře"]

1. d4 {[%clk 0:03:00.9]} 1... Nf6 {[%clk 0:02:59.1]} 2. Nf3 {[%clk 0:03:00.9]}
2... e6 {[%clk 0:02:59.3]} 3. g3 {[%clk 0:03:01.3]} 3... d5 {[%clk 0:02:59.5]}
4. Bg2 {[%clk 0:03:01.3]} 4... Be7 {[%clk 0:02:59.4]} 5. O-O {[%clk 0:03:01.4]}
5... O-O {[%clk 0:02:59.9]} 6. Nbd2 {[%clk 0:03:01.7]} 6... Nbd7 {[%clk
0:02:59.6]} 7. c4 {[%clk 0:03:00.9]} 7... b6 {[%clk 0:02:59.2]} 8. cxd5 {[%clk
0:03:00.6]} 8... Nxd5 {[%clk 0:02:55.4]} 9. a3 {[%clk 0:03:00.7]} 9... Bb7
{[%clk 0:02:54.9]} 10. Qc2 {[%clk 0:02:59.9]} 10... Rc8 {[%clk 0:02:55.3]} 11.
e4 {[%clk 0:02:54.9]} 11... N5f6 {[%clk 0:02:52]} 12. e5 {[%clk 0:02:49.8]}
12... Nd5 {[%clk 0:02:52]} 13. Ne4 {[%clk 0:02:46.6]} 13... c5 {[%clk
0:02:50.9]} 14. dxc5 {[%clk 0:02:43.6]} 14... Nxc5 {[%clk 0:02:50.5]} 15. Nxc5
{[%clk 0:02:42.5]} 15... Rxc5 {[%clk 0:02:50]} 16. Qd3 {[%clk 0:02:30.5]} 16...
Qc7 {[%clk 0:02:45.3]} 17. b4 {[%clk 0:02:23]} 17... Rc6 {[%clk 0:02:33.3]} 18.
Bb2 {[%clk 0:02:21.7]} 18... Rd8 {[%clk 0:02:29.1]} 19. Qb3 {[%clk 0:02:16]}
19... h6 {[%clk 0:02:24.4]} 20. Rac1 {[%clk 0:02:14.8]} 20... Rxc1 {[%clk
0:02:19.5]} 21. Rxc1 {[%clk 0:02:14.2]} 21... Qd7 {[%clk 0:02:18.7]} 22. Rd1
{[%clk 0:02:03.8]} 22... Qb5 {[%clk 0:02:09.2]} 23. Qc2 {[%clk 0:01:40.9]} 23...
Rc8 {[%clk 0:02:06.3]} 24. Qb3 {[%clk 0:01:39.9]} 24... Qc4 {[%clk 0:02:04.4]}
25. Qxc4 {[%clk 0:01:38.8]} 25... Rxc4 {[%clk 0:02:05.3]} 26. Rc1 {[%clk
0:01:37]} 26... Rxc1+ {[%clk 0:02:04.5]} 27. Bxc1 {[%clk 0:01:37]} 27... Nc3
{[%clk 0:02:02.4]} 28. Nd4 {[%clk 0:01:33.4]} 28... Bxg2 {[%clk 0:01:59.4]} 29.
Kxg2 {[%clk 0:01:33.6]} 29... Kf8 {[%clk 0:01:45.2]} 30. Nc6 {[%clk 0:01:33.1]}
30... a6 {[%clk 0:01:41.2]} 31. Nb8 {[%clk 0:01:27.3]} 31... a5 {[%clk
0:01:39.9]} 32. bxa5 {[%clk 0:01:25]} 32... bxa5 {[%clk 0:01:39.8]} 33. Nc6
{[%clk 0:01:25.4]} 33... a4 {[%clk 0:01:36]} 34. Nxe7 {[%clk 0:01:20.9]} 34...
Kxe7 {[%clk 0:01:35.6]} 35. Bd2 {[%clk 0:01:21.1]} 35... Kd7 {[%clk 0:01:33.8]}
36. Bxc3 {[%clk 0:01:21]} 36... Kc6 {[%clk 0:01:31.9]} 37. Bb4 {[%clk
0:01:21.3]} 37... g6 {[%clk 0:01:28.6]} 38. f4 {[%clk 0:01:21.6]} 38... h5
{[%clk 0:01:27.9]} 39. Kf3 {[%clk 0:01:21.9]} 39... Kd5 {[%clk 0:01:28]} 40. Ke3
{[%clk 0:01:22]} 40... Kc4 {[%clk 0:01:26.8]} 41. Ke4 {[%clk 0:01:20.7]} 41...
Kb3 {[%clk 0:01:16]} 42. h3 {[%clk 0:01:20.6]} 42... Kc4 {[%clk 0:01:15.2]} 43.
g4 {[%clk 0:01:20.7]} 43... hxg4 {[%clk 0:01:15]} 44. hxg4 {[%clk 0:01:20.7]}
44... Kb5 {[%clk 0:01:14]} 45. f5 {[%clk 0:01:20.7]} 45... gxf5+ {[%clk
0:01:12.8]} 46. gxf5 {[%clk 0:01:20.9]} 46... Kc6 {[%clk 0:01:11.3]} 47. f6
{[%clk 0:01:16]} 47... Kd7 {[%clk 0:01:10.9]} 48. Kd4 {[%clk 0:01:16.1]} 48...
Kc6 {[%clk 0:01:10.4]} 49. Kc4 {[%clk 0:01:15.8]} 49... Kb6 {[%clk 0:01:10.2]}
50. Bd6 {[%clk 0:01:14.2]} 50... Ka5 {[%clk 0:01:06.6]} 51. Kc5 {[%clk
0:01:13.1]} 51... Ka6 {[%clk 0:01:04.3]} 52. Kb4 {[%clk 0:01:13.3]} 52... Kb6
{[%clk 0:01:03.2]} 53. Kxa4 {[%clk 0:01:13.7]} 53... Ka6 {[%clk 0:01:01.3]} 54.
Kb4 {[%clk 0:01:14]} 54... Kb6 {[%clk 0:01:01.6]} 55. a4 {[%clk 0:01:14.1]}
55... Ka6 {[%clk 0:01:01.5]} 56. a5 {[%clk 0:01:14.2]} 56... Kb7 {[%clk
0:01:01.5]} 57. Kb5 {[%clk 0:01:14.6]} 57... Ka7 {[%clk 0:01:01.7]} 58. a6
{[%clk 0:01:15]} 58... Ka8 {[%clk 0:01:01.1]} 59. Be7 {[%clk 0:01:08.3]} 59...
Kb8 {[%clk 0:00:57.4]} 60. Kc6 {[%clk 0:01:08.5]} 60... Kc8 {[%clk 0:00:54.2]}
61. Kd6 {[%clk 0:01:04.6]} 61... Kb8 {[%clk 0:00:46.5]} 62. Bd8 {[%clk 0:01:04]}
62... Kc8 {[%clk 0:00:39.5]} 63. a7 {[%clk 0:01:01.3]} 63... Kb7 {[%clk
0:00:38]} 64. Ke7 {[%clk 0:01:01.1]} 64... Kxa7 {[%clk 0:00:36.8]} 65. Kxf7
{[%clk 0:01:01.6]} 1-0

[Event "Betsys MČR v online bleskovém šachu 2021"]
[Site "Chess.com"]
[Date "2021.04.17"]
[Round "12"]
[White "marecek1754"]
[Black "Cimrman"]
[Result "1-0"]
[WhiteElo "2195"]
[BlackElo "2321"]
[TimeControl "180+1"]
[EndTime "11:01:01 PDT"]
[Termination "Uživatel marecek1754 zvítězil po vzdání soupeře"]

1. e4 {[%clk 0:02:54.7]} 1... c6 {[%clk 0:02:43]} 2. d4 {[%clk 0:02:53.3]} 2...
d5 {[%clk 0:02:42.6]} 3. exd5 {[%clk 0:02:53.7]} 3... cxd5 {[%clk 0:02:42.7]} 4.
Bd3 {[%clk 0:02:53.9]} 4... Nc6 {[%clk 0:02:42.1]} 5. c3 {[%clk 0:02:53.4]} 5...
Qc7 {[%clk 0:02:40.6]} 6. Nf3 {[%clk 0:02:53.1]} 6... Bg4 {[%clk 0:02:37.5]} 7.
O-O {[%clk 0:02:52.3]} 7... Nf6 {[%clk 0:02:37.4]} 8. h3 {[%clk 0:02:52.2]} 8...
Bxf3 {[%clk 0:02:37.2]} 9. Qxf3 {[%clk 0:02:51.8]} 9... e6 {[%clk 0:02:36.9]}
10. Bf4 {[%clk 0:02:51.5]} 10... Bd6 {[%clk 0:02:35.9]} 11. Bxd6 {[%clk
0:02:51.6]} 11... Qxd6 {[%clk 0:02:34.9]} 12. Nd2 {[%clk 0:02:52.5]} 12... O-O
{[%clk 0:02:30.1]} 13. Qe3 {[%clk 0:02:47.4]} 13... Rab8 {[%clk 0:02:01.3]} 14.
Nf3 {[%clk 0:02:41.9]} 14... b5 {[%clk 0:01:54.2]} 15. Ne5 {[%clk 0:02:26.9]}
15... Nd7 {[%clk 0:01:50.2]} 16. f4 {[%clk 0:02:00]} 16... b4 {[%clk 0:01:37.9]}
17. Nxc6 {[%clk 0:01:51]} 17... Qxc6 {[%clk 0:01:36]} 18. f5 {[%clk 0:01:29.9]}
18... exf5 {[%clk 0:01:13.7]} 19. Bxf5 {[%clk 0:01:28.7]} 19... g6 {[%clk
0:01:13.7]} 20. Bc2 {[%clk 0:00:50.6]} 20... bxc3 {[%clk 0:01:10.7]} 21. bxc3
{[%clk 0:00:49.6]} 21... Rbe8 {[%clk 0:00:50]} 22. Qf3 {[%clk 0:00:48.7]} 22...
Nb6 {[%clk 0:00:44.2]} 23. Bb3 {[%clk 0:00:48.8]} 23... a5 {[%clk 0:00:39.9]}
24. Rae1 {[%clk 0:00:41]} 24... Rxe1 {[%clk 0:00:32.8]} 25. Rxe1 {[%clk
0:00:40.2]} 25... a4 {[%clk 0:00:33.2]} 26. Bc2 {[%clk 0:00:36.2]} 26... a3
{[%clk 0:00:29.4]} 27. Re5 {[%clk 0:00:29.7]} 27... f6 {[%clk 0:00:25.8]} 28.
Re7 {[%clk 0:00:26.8]} 28... Nc4 {[%clk 0:00:22.9]} 29. Bb3 {[%clk 0:00:24.8]}
29... Qd6 {[%clk 0:00:20.2]} 30. Ra7 {[%clk 0:00:21.6]} 30... Rd8 {[%clk
0:00:17.1]} 31. Bxc4 {[%clk 0:00:19.2]} 31... dxc4 {[%clk 0:00:17]} 32. Qb7
{[%clk 0:00:19.9]} 32... Rd7 {[%clk 0:00:02.2]} 33. Qxd7 {[%clk 0:00:19.5]}
33... Qxd7 {[%clk 0:00:03.1]} 34. Rxd7 {[%clk 0:00:19.8]} 34... Kf8 {[%clk
0:00:04]} 35. Rc7 {[%clk 0:00:20.2]} 35... Ke8 {[%clk 0:00:03.8]} 36. Rxc4
{[%clk 0:00:21.1]} 1-0

[Event "Betsys MČR v online bleskovém šachu 2021"]
[Site "Chess.com"]
[Date "2021.04.17"]
[Round "12"]
[White "czlolcz"]
[Black "MichalTrhal"]
[Result "1-0"]
[WhiteElo "2195"]
[BlackElo "1949"]
[TimeControl "180+1"]
[EndTime "11:01:02 PDT"]
[Termination "Uživatel czlolcz zvítězil po vzdání soupeře"]

1. d4 {[%clk 0:02:38.8]} 1... Nf6 {[%clk 0:02:59.1]} 2. c4 {[%clk 0:02:37.9]}
2... c5 {[%clk 0:02:59.2]} 3. d5 {[%clk 0:02:37.4]} 3... b5 {[%clk 0:02:56.3]}
4. cxb5 {[%clk 0:02:38.3]} 4... a6 {[%clk 0:02:56.5]} 5. f3 {[%clk 0:02:37.1]}
5... d6 {[%clk 0:02:51.5]} 6. e4 {[%clk 0:02:36.7]} 6... g6 {[%clk 0:02:51.4]}
7. Nc3 {[%clk 0:02:36.3]} 7... Bg7 {[%clk 0:02:51.3]} 8. Bc4 {[%clk 0:02:34.9]}
8... O-O {[%clk 0:02:49]} 9. Nge2 {[%clk 0:02:34.2]} 9... Nh5 {[%clk 0:02:40.3]}
10. O-O {[%clk 0:02:31.6]} 10... axb5 {[%clk 0:02:40.3]} 11. Nxb5 {[%clk
0:02:28.2]} 11... Nd7 {[%clk 0:02:34.3]} 12. Nec3 {[%clk 0:02:10.7]} 12... Nb6
{[%clk 0:02:33.2]} 13. b3 {[%clk 0:02:08]} 13... Bd7 {[%clk 0:02:23]} 14. Qd3
{[%clk 0:01:40.8]} 14... Nxc4 {[%clk 0:02:15.3]} 15. bxc4 {[%clk 0:01:32]} 15...
Qb6 {[%clk 0:02:07.6]} 16. Rb1 {[%clk 0:01:25.4]} 16... Rfb8 {[%clk 0:02:07.3]}
17. Bg5 {[%clk 0:01:15.4]} 17... Kf8 {[%clk 0:01:51.1]} 18. g4 {[%clk
0:01:07.8]} 18... Nf6 {[%clk 0:01:49.8]} 19. Bf4 {[%clk 0:01:08.3]} 19... Qa5
{[%clk 0:01:47.8]} 20. a4 {[%clk 0:00:59.8]} 20... Kg8 {[%clk 0:01:18]} 21. Kg2
{[%clk 0:00:56.1]} 21... Be8 {[%clk 0:01:03.7]} 22. e5 {[%clk 0:00:31.8]} 22...
Bxb5 {[%clk 0:00:32.1]} 23. axb5 {[%clk 0:00:26.9]} 23... Ne8 {[%clk 0:00:27.7]}
24. Ra1 {[%clk 0:00:18.9]} 24... Qxa1 {[%clk 0:00:26.3]} 25. Rxa1 {[%clk
0:00:19.8]} 25... Rxa1 {[%clk 0:00:26.3]} 26. exd6 {[%clk 0:00:19.9]} 26... Nxd6
{[%clk 0:00:24.6]} 27. Ne4 {[%clk 0:00:19.8]} 27... Ra2+ {[%clk 0:00:19.9]} 28.
Kg3 {[%clk 0:00:19.6]} 28... Nxe4+ {[%clk 0:00:19.3]} 29. Qxe4 {[%clk 0:00:19]}
29... Re8 {[%clk 0:00:16.8]} 30. b6 {[%clk 0:00:17.3]} 30... Rb2 {[%clk
0:00:15.2]} 31. Bc7 {[%clk 0:00:17.3]} 31... Rb4 {[%clk 0:00:10]} 32. f4 {[%clk
0:00:15.3]} 32... Bd4 {[%clk 0:00:09.7]} 33. d6 {[%clk 0:00:14.3]} 33... Rb3+
{[%clk 0:00:09.7]} 34. Kg2 {[%clk 0:00:13.5]} 34... Rb2+ {[%clk 0:00:09]} 35.
Kf1 {[%clk 0:00:13.1]} 35... Ra8 {[%clk 0:00:08.8]} 36. Qxa8+ {[%clk 0:00:12.2]}
1-0

[Event "Betsys MČR v online bleskovém šachu 2021"]
[Site "Chess.com"]
[Date "2021.04.17"]
[Round "12"]
[White "rakintsev"]
[Black "OndrejBorkovec"]
[Result "1-0"]
[WhiteElo "1730"]
[BlackElo "1511"]
[TimeControl "180+1"]
[EndTime "11:01:02 PDT"]
[Termination "Uživatel rakintsev zvítězil matem"]

1. e4 {[%clk 0:03:00.9]} 1... e6 {[%clk 0:02:59.9]} 2. Nf3 {[%clk 0:02:59.9]}
2... c5 {[%clk 0:02:57.9]} 3. Bc4 {[%clk 0:02:58.5]} 3... d5 {[%clk 0:02:56.9]}
4. exd5 {[%clk 0:02:57.7]} 4... exd5 {[%clk 0:02:57.8]} 5. Bb3 {[%clk
0:02:57.4]} 5... Nc6 {[%clk 0:02:57.1]} 6. O-O {[%clk 0:02:55.9]} 6... Nf6
{[%clk 0:02:56.6]} 7. d3 {[%clk 0:02:55.2]} 7... Be7 {[%clk 0:02:56.6]} 8. Bg5
{[%clk 0:02:52.9]} 8... O-O {[%clk 0:02:55.9]} 9. Nbd2 {[%clk 0:02:52]} 9... h6
{[%clk 0:02:54]} 10. Bh4 {[%clk 0:02:51.6]} 10... Bg4 {[%clk 0:02:53.1]} 11. Qc1
{[%clk 0:02:47.2]} 11... Na5 {[%clk 0:02:48.2]} 12. Ne5 {[%clk 0:02:30.2]} 12...
Nxb3 {[%clk 0:02:41.8]} 13. axb3 {[%clk 0:02:30]} 13... Bf5 {[%clk 0:02:32.4]}
14. Bg3 {[%clk 0:02:11.8]} 14... Re8 {[%clk 0:02:30.6]} 15. Qd1 {[%clk
0:01:51.8]} 15... a6 {[%clk 0:02:17.1]} 16. h3 {[%clk 0:01:46.3]} 16... Bf8
{[%clk 0:02:05.3]} 17. Ra4 {[%clk 0:01:43.5]} 17... g6 {[%clk 0:02:01.4]} 18.
Nef3 {[%clk 0:01:34.5]} 18... Bg7 {[%clk 0:01:55.7]} 19. Rf4 {[%clk 0:01:32.4]}
19... Nh5 {[%clk 0:01:54.6]} 20. Ra4 {[%clk 0:01:21.7]} 20... Bd7 {[%clk
0:01:50.4]} 21. Qc1 {[%clk 0:01:19.6]} 21... Bxa4 {[%clk 0:01:48.2]} 22. bxa4
{[%clk 0:01:19.3]} 22... Nxg3 {[%clk 0:01:48]} 23. fxg3 {[%clk 0:01:18.9]} 23...
Qd6 {[%clk 0:01:47.8]} 24. Kh2 {[%clk 0:01:14.2]} 24... Re2 {[%clk 0:01:47.1]}
25. Qd1 {[%clk 0:01:09.8]} 25... Rae8 {[%clk 0:01:46]} 26. Nh4 {[%clk
0:01:07.1]} 26... R8e3 {[%clk 0:01:31.9]} 27. Ndf3 {[%clk 0:01:01.4]} 27... Bxb2
{[%clk 0:01:27.1]} 28. Qb1 {[%clk 0:00:59.5]} 28... Bg7 {[%clk 0:01:25.2]} 29.
Qxb7 {[%clk 0:00:58]} 29... Re7 {[%clk 0:01:24.7]} 30. Qc8+ {[%clk 0:00:53.5]}
30... Kh7 {[%clk 0:01:24.5]} 31. Qg4 {[%clk 0:00:48.8]} 31... Rxc2 {[%clk
0:01:12.2]} 32. d4 {[%clk 0:00:38.2]} 32... f5 {[%clk 0:00:58.4]} 33. Nxf5
{[%clk 0:00:23.1]} 33... gxf5 {[%clk 0:00:56.8]} 34. Qxf5+ {[%clk 0:00:23.1]}
34... Kg8 {[%clk 0:00:53.6]} 35. Qxc2 {[%clk 0:00:22.2]} 35... Bxd4 {[%clk
0:00:49.7]} 36. Nxd4 {[%clk 0:00:19]} 36... cxd4 {[%clk 0:00:49.9]} 37. Qc8+
{[%clk 0:00:18.1]} 37... Kh7 {[%clk 0:00:47.4]} 38. Qf8 {[%clk 0:00:15.8]} 38...
Rg7 {[%clk 0:00:46.1]} 39. Qxd6 {[%clk 0:00:14.5]} 39... d3 {[%clk 0:00:44.8]}
40. Qxd5 {[%clk 0:00:14.1]} 40... d2 {[%clk 0:00:45.2]} 41. Qxd2 {[%clk
0:00:13.9]} 41... Kh8 {[%clk 0:00:45.2]} 42. Qd8+ {[%clk 0:00:13.1]} 42... Kh7
{[%clk 0:00:45.2]} 43. Rf8 {[%clk 0:00:12.2]} 43... a5 {[%clk 0:00:40.3]} 44.
Rh8+ {[%clk 0:00:11.9]} 44... Kg6 {[%clk 0:00:40.4]} 45. Qd6+ {[%clk 0:00:10.9]}
45... Kh5 {[%clk 0:00:39.3]} 46. Rxh6+ {[%clk 0:00:10.5]} 46... Kg5 {[%clk
0:00:39]} 47. Qf6# {[%clk 0:00:10.5]} 1-0

[Event "Betsys MČR v online bleskovém šachu 2021"]
[Site "Chess.com"]
[Date "2021.04.17"]
[Round "12"]
[White "youhy"]
[Black "dino5517"]
[Result "1-0"]
[WhiteElo "1747"]
[BlackElo "1390"]
[TimeControl "180+1"]
[EndTime "11:01:02 PDT"]
[Termination "Uživatel youhy zvítězil po vzdání soupeře"]

1. e4 {[%clk 0:03:00.9]} 1... e5 {[%clk 0:02:57.1]} 2. Nf3 {[%clk 0:03:00.1]}
2... Nf6 {[%clk 0:02:56.1]} 3. Nxe5 {[%clk 0:02:59.1]} 3... Nc6 {[%clk 0:02:56]}
4. Nxc6 {[%clk 0:02:57.7]} 4... dxc6 {[%clk 0:02:56.5]} 5. e5 {[%clk 0:02:57.3]}
5... Ng4 {[%clk 0:02:53.3]} 6. d4 {[%clk 0:02:55.6]} 6... Be6 {[%clk 0:02:40.9]}
7. h3 {[%clk 0:02:51.2]} 7... Nh6 {[%clk 0:02:33.4]} 8. Bxh6 {[%clk 0:02:51.8]}
8... gxh6 {[%clk 0:02:32.2]} 9. Nc3 {[%clk 0:02:50.9]} 9... Qg5 {[%clk
0:02:29.7]} 10. Ne4 {[%clk 0:02:48.7]} 10... Qf5 {[%clk 0:02:23.2]} 11. Nf6+
{[%clk 0:02:46.8]} 11... Ke7 {[%clk 0:02:17.7]} 12. Bd3 {[%clk 0:02:40.8]} 12...
Qg5 {[%clk 0:02:11.7]} 13. Qf3 {[%clk 0:02:17.4]} 13... Bg7 {[%clk 0:01:54.6]}
14. Ne4 {[%clk 0:02:01.8]} 14... Qf5 {[%clk 0:01:33.1]} 15. Qxf5 {[%clk
0:01:44]} 15... Bxf5 {[%clk 0:01:33.2]} 16. O-O-O {[%clk 0:01:43.2]} 16... h5
{[%clk 0:01:27.3]} 17. Rhg1 {[%clk 0:01:33.5]} 17... Bh6+ {[%clk 0:01:23.3]} 18.
Kb1 {[%clk 0:01:31.8]} 18... Rad8 {[%clk 0:01:17.5]} 19. c3 {[%clk 0:01:29.6]}
19... b5 {[%clk 0:01:11.9]} 20. g4 {[%clk 0:01:23.8]} 20... hxg4 {[%clk
0:01:08]} 21. hxg4 {[%clk 0:01:22.5]} 21... Bg6 {[%clk 0:01:06.6]} 22. g5 {[%clk
0:01:17.7]} 22... Bg7 {[%clk 0:01:05.1]} 23. Nf6 {[%clk 0:01:13.4]} 23... b4
{[%clk 0:00:58.2]} 24. Kc2 {[%clk 0:01:09.9]} 24... bxc3 {[%clk 0:00:56.6]} 25.
bxc3 {[%clk 0:01:09.8]} 25... Bxd3+ {[%clk 0:00:53.9]} 26. Rxd3 {[%clk
0:01:07.9]} 26... h6 {[%clk 0:00:52.8]} 27. Rdg3 {[%clk 0:00:50.6]} 27... hxg5
{[%clk 0:00:47.3]} 28. Ne4 {[%clk 0:00:45.3]} 28... Bh6 {[%clk 0:00:38.6]} 29.
Nxg5 {[%clk 0:00:39.2]} 29... f6 {[%clk 0:00:34.1]} 30. exf6+ {[%clk 0:00:34.3]}
30... Kxf6 {[%clk 0:00:32.9]} 31. Rf3+ {[%clk 0:00:32]} 31... Kg6 {[%clk
0:00:28.4]} 32. Nf7+ {[%clk 0:00:30.1]} 32... Kh7 {[%clk 0:00:27.1]} 33. Nxh8
{[%clk 0:00:24.4]} 33... Rxh8 {[%clk 0:00:26.8]} 34. Rf7+ {[%clk 0:00:23.3]}
34... Bg7 {[%clk 0:00:25.6]} 35. Rfxg7+ {[%clk 0:00:23.4]} 35... Kh6 {[%clk
0:00:24.5]} 36. R7g6+ {[%clk 0:00:22]} 36... Kh5 {[%clk 0:00:23.1]} 37. Rh1+
{[%clk 0:00:21.4]} 37... Kxg6 {[%clk 0:00:22.3]} 38. Rxh8 {[%clk 0:00:22]} 38...
Kf5 {[%clk 0:00:22.6]} 39. Rc8 {[%clk 0:00:21.7]} 39... Ke6 {[%clk 0:00:22.8]}
40. Rxc7 {[%clk 0:00:21.9]} 40... Kd6 {[%clk 0:00:23.3]} 41. Rxa7 {[%clk
0:00:21.8]} 41... Kd5 {[%clk 0:00:23.2]} 42. f4 {[%clk 0:00:21.4]} 42... Kd6
{[%clk 0:00:22.8]} 43. f5 {[%clk 0:00:21.1]} 43... Kd5 {[%clk 0:00:22.2]} 44. f6
{[%clk 0:00:21.3]} 44... Kd6 {[%clk 0:00:22.3]} 45. f7 {[%clk 0:00:21.9]} 45...
Kd5 {[%clk 0:00:22]} 46. f8=Q {[%clk 0:00:21.7]} 1-0

[Event "Betsys MČR v online bleskovém šachu 2021"]
[Site "Chess.com"]
[Date "2021.04.17"]
[Round "12"]
[White "Nimrod64"]
[Black "CZMaster666"]
[Result "1-0"]
[WhiteElo "2238"]
[BlackElo "1914"]
[TimeControl "180+1"]
[EndTime "11:01:05 PDT"]
[Termination "Uživatel Nimrod64 zvítězil matem"]

1. d4 {[%clk 0:03:00.9]} 1... d5 {[%clk 0:02:59.1]} 2. Nf3 {[%clk 0:03:00.3]}
2... c6 {[%clk 0:02:57.2]} 3. c4 {[%clk 0:02:59.6]} 3... e6 {[%clk 0:02:56.9]}
4. Qc2 {[%clk 0:02:58.7]} 4... Bd6 {[%clk 0:02:55.6]} 5. g3 {[%clk 0:02:57.6]}
5... Nf6 {[%clk 0:02:54.7]} 6. Bg2 {[%clk 0:02:56.7]} 6... Nbd7 {[%clk
0:02:55.2]} 7. O-O {[%clk 0:02:55.4]} 7... O-O {[%clk 0:02:55.5]} 8. Nbd2 {[%clk
0:02:53.6]} 8... Re8 {[%clk 0:02:55.5]} 9. e3 {[%clk 0:02:48.8]} 9... e5 {[%clk
0:02:55.8]} 10. dxe5 {[%clk 0:02:48.2]} 10... Nxe5 {[%clk 0:02:55.8]} 11. Nxe5
{[%clk 0:02:47.8]} 11... Bxe5 {[%clk 0:02:56.7]} 12. Nf3 {[%clk 0:02:47.4]}
12... Bc7 {[%clk 0:02:56.1]} 13. Rd1 {[%clk 0:02:46.5]} 13... Qe7 {[%clk
0:02:53.9]} 14. cxd5 {[%clk 0:02:44.1]} 14... Nxd5 {[%clk 0:02:53.4]} 15. a3
{[%clk 0:02:43.1]} 15... Bg4 {[%clk 0:02:53.1]} 16. h3 {[%clk 0:02:40.8]} 16...
Bh5 {[%clk 0:02:52.6]} 17. Qc4 {[%clk 0:02:16.4]} 17... Rad8 {[%clk 0:02:49.7]}
18. Bd2 {[%clk 0:02:14.2]} 18... Rd7 {[%clk 0:02:34.3]} 19. Re1 {[%clk
0:01:59.4]} 19... Red8 {[%clk 0:02:29.3]} 20. Bb4 {[%clk 0:01:54.2]} 20... Nxb4
{[%clk 0:02:29.3]} 21. axb4 {[%clk 0:01:53]} 21... Bxf3 {[%clk 0:02:20.7]} 22.
Bxf3 {[%clk 0:01:50.6]} 22... Rd2 {[%clk 0:02:20.6]} 23. Rxa7 {[%clk 0:01:41.5]}
23... Qf6 {[%clk 0:02:05.3]} 24. Kg2 {[%clk 0:01:29.5]} 24... Qxb2 {[%clk
0:01:55.1]} 25. Re2 {[%clk 0:01:20]} 25... Rxe2 {[%clk 0:01:48.1]} 26. Bxe2
{[%clk 0:01:14.2]} 26... Qf6 {[%clk 0:01:29.1]} 27. Rxb7 {[%clk 0:01:08]} 27...
Qd6 {[%clk 0:01:28]} 28. Bf3 {[%clk 0:01:02.1]} 28... Qe5 {[%clk 0:00:47.8]} 29.
Qxc6 {[%clk 0:00:56.7]} 29... Bb8 {[%clk 0:00:43.7]} 30. Qc4 {[%clk 0:00:51.9]}
30... Qf6 {[%clk 0:00:30.9]} 31. b5 {[%clk 0:00:47.8]} 31... g6 {[%clk 0:00:20]}
32. Bd5 {[%clk 0:00:46.5]} 32... Rf8 {[%clk 0:00:15.6]} 33. b6 {[%clk
0:00:37.9]} 33... Qb2 {[%clk 0:00:12.1]} 34. Rxf7 {[%clk 0:00:32.1]} 34... Rxf7
{[%clk 0:00:10.3]} 35. Bxf7+ {[%clk 0:00:33]} 35... Kf8 {[%clk 0:00:10.7]} 36.
Qe6 {[%clk 0:00:32.3]} 36... Qb5 {[%clk 0:00:09.6]} 37. Bg8 {[%clk 0:00:29.7]}
37... Kg7 {[%clk 0:00:08.6]} 38. Qf7+ {[%clk 0:00:28.3]} 38... Kh6 {[%clk
0:00:09]} 39. Qxh7+ {[%clk 0:00:27.9]} 39... Kg5 {[%clk 0:00:09.7]} 40. h4+
{[%clk 0:00:27.6]} 40... Kf5 {[%clk 0:00:07.4]} 41. Qf7+ {[%clk 0:00:26.5]}
41... Ke5 {[%clk 0:00:03.7]} 42. Qe6# {[%clk 0:00:25.4]} 1-0

[Event "Betsys MČR v online bleskovém šachu 2021"]
[Site "Chess.com"]
[Date "2021.04.17"]
[Round "12"]
[White "KarelZalesky"]
[Black "veronikam"]
[Result "0-1"]
[WhiteElo "1726"]
[BlackElo "1687"]
[TimeControl "180+1"]
[EndTime "11:01:06 PDT"]
[Termination "Uživatel veronikam zvítězil na čas"]

1. e4 {[%clk 0:02:59]} 1... e5 {[%clk 0:02:59]} 2. Nf3 {[%clk 0:02:58.3]} 2...
Nc6 {[%clk 0:02:59]} 3. Bb5 {[%clk 0:02:57.6]} 3... a6 {[%clk 0:02:58.9]} 4.
Bxc6 {[%clk 0:02:56]} 4... bxc6 {[%clk 0:02:57.6]} 5. O-O {[%clk 0:02:51.4]}
5... d6 {[%clk 0:02:54.3]} 6. Nc3 {[%clk 0:02:50]} 6... Bg4 {[%clk 0:02:53.7]}
7. h3 {[%clk 0:02:49.6]} 7... Bh5 {[%clk 0:02:53.2]} 8. d3 {[%clk 0:02:46.2]}
8... Nf6 {[%clk 0:02:53]} 9. Bg5 {[%clk 0:02:45.1]} 9... Be7 {[%clk 0:02:52.2]}
10. g4 {[%clk 0:02:42.7]} 10... Bg6 {[%clk 0:02:51.2]} 11. Qd2 {[%clk
0:02:37.3]} 11... h6 {[%clk 0:02:50.6]} 12. Be3 {[%clk 0:02:32.2]} 12... Qd7
{[%clk 0:02:41]} 13. Nh2 {[%clk 0:02:30.7]} 13... O-O-O {[%clk 0:02:35.2]} 14.
Kg2 {[%clk 0:02:16.7]} 14... h5 {[%clk 0:02:34.7]} 15. g5 {[%clk 0:02:16.4]}
15... Nh7 {[%clk 0:02:34.1]} 16. f4 {[%clk 0:01:41.3]} 16... exf4 {[%clk
0:02:26.8]} 17. Bxf4 {[%clk 0:01:41]} 17... f6 {[%clk 0:02:26.4]} 18. h4 {[%clk
0:01:31.4]} 18... Nf8 {[%clk 0:02:17.8]} 19. Rf2 {[%clk 0:01:26.2]} 19... Ne6
{[%clk 0:02:17.5]} 20. Be3 {[%clk 0:01:24.4]} 20... fxg5 {[%clk 0:02:15.9]} 21.
hxg5 {[%clk 0:01:21.9]} 21... Rhf8 {[%clk 0:02:04.3]} 22. Raf1 {[%clk
0:01:21.4]} 22... Rde8 {[%clk 0:01:46.4]} 23. Rxf8 {[%clk 0:01:20.6]} 23... Rxf8
{[%clk 0:01:45.9]} 24. Rxf8+ {[%clk 0:01:19.9]} 24... Nxf8 {[%clk 0:01:41.6]}
25. Ne2 {[%clk 0:01:07.7]} 25... d5 {[%clk 0:01:37]} 26. Nf4 {[%clk 0:00:36.6]}
26... Bd6 {[%clk 0:01:25.5]} 27. exd5 {[%clk 0:00:32.5]} 27... Bxf4 {[%clk
0:01:22.2]} 28. Bxf4 {[%clk 0:00:29.3]} 28... Qxd5+ {[%clk 0:01:22.2]} 29. Kg1
{[%clk 0:00:21.5]} 29... Ne6 {[%clk 0:01:22.2]} 30. Be3 {[%clk 0:00:20]} 30...
c5 {[%clk 0:01:13.7]} 31. b3 {[%clk 0:00:18]} 31... Qd6 {[%clk 0:01:10.5]} 32.
Qf2 {[%clk 0:00:17]} 32... Kd7 {[%clk 0:01:02.6]} 33. Qf3 {[%clk 0:00:15.5]}
33... Qc6 {[%clk 0:00:57.5]} 34. Qxc6+ {[%clk 0:00:14.8]} 34... Kxc6 {[%clk
0:00:57.3]} 35. Nf3 {[%clk 0:00:14.6]} 35... Kd5 {[%clk 0:00:53.2]} 36. c4+
{[%clk 0:00:13.8]} 36... Kd6 {[%clk 0:00:49.4]} 37. d4 {[%clk 0:00:13.8]} 37...
cxd4 {[%clk 0:00:47.3]} 38. Nxd4 {[%clk 0:00:13.8]} 38... Bb1 {[%clk 0:00:42.7]}
39. a3 {[%clk 0:00:12]} 39... Ba2 {[%clk 0:00:38.7]} 40. Nxe6 {[%clk 0:00:08.8]}
40... Kxe6 {[%clk 0:00:38]} 41. b4 {[%clk 0:00:02]} 41... Bxc4 {[%clk
0:00:37.1]} 42. Kh2 {[%clk 0:00:01.8]} 42... Kf5 {[%clk 0:00:36.3]} 43. Kg3
{[%clk 0:00:01.7]} 43... Ke4 {[%clk 0:00:35.7]} 0-1